bitfinex/quotes_SOLUSD_20240725
["timestamp","ask_amount","ask_price","bid_price","bid_amount"]
[1721924816270,380.5,171.16,171.07,20.0]
[1721924817072,380.5,171.16,171.08,45.0]
[1721924817249,380.5,171.16,171.09,20.0]
[1721924817450,398.07,171.16,171.06,6.3832]
[1721924817780,439.56827339,171.16,171.06,6.3832]
[1721924817953,433.72577339,171.16,171.06,6.3832]
[1721924818153,416.15577339,171.16,171.06,6.3832]
[1721924818762,433.72577339,171.16,171.06,6.3832]
[1721924818971,439.56837339,171.16,171.06,6.3832]
[1721924819161,83.58345416,171.15,171.06,6.3832]
[1721924819363,83.58345416,171.15,171.02,22.7176]
[1721924819364,47.14,171.13,171.02,22.7176]
[1721924820060,29.57,171.13,171.02,22.7176]
[1721924820466,380.5,171.14,171.03,1.16925179]
[1721924820784,380.5,171.14,171.02,22.7176]
[1721924821079,380.5,171.14,171.03,45.0]
[1721924821257,380.5,171.14,171.04,20.0]
[1721924821763,380.5,171.14,171.02,22.7176]
[1721924821764,418.07,171.14,171.02,22.7176]
[1721924822648,427.64,171.13,171.02,22.7176]
[1721924822879,5.8455,171.08,170.98,22.6847]
[1721924823091,67.14,171.07,170.98,6.3064]
[1721924823259,72.9857,171.07,170.93,22.6847]
[1721924823465,447.64,171.07,170.93,22.6847]
[1721924823981,447.64,171.07,170.98,29.57]
[1721924823982,380.5,171.07,170.98,29.57]
[1721924824160,380.5,171.07,171.01,15.6839]
[1721924824471,1.01345416,171.15,171.02,46.16910215]
[1721924824771,380.5,171.18,171.03,20.0]
[1721924824963,1.01369783,171.17,171.04,46.16892625]
[1721924825271,1.01369783,171.17,171.05,20.0]
[1721924825773,47.14,171.16,171.05,20.0]
[1721924826479,28.11164873,171.15,171.05,20.0]
[1721924826655,17.57,171.15,171.05,20.0]
[1721924826857,48.11212795,171.14,171.02,20.0]
[1721924827065,10.54289857,171.13,171.02,20.0]
[1721924827259,17.57,171.14,171.02,21.16925121]
[1721924827475,29.57,171.16,171.02,21.16925121]
[1721924827678,10.54231429,171.15,171.03,45.0]
[1721924827868,29.57,171.16,171.04,20.0]
[1721924828378,29.57,171.16,171.05,45.0]
[1721924828685,29.57,171.16,171.06,20.0]
[1721924830550,381.51369783,171.17,171.06,20.0]
[1721924831478,1.01369783,171.17,171.07,52.71966808]
[1721924831684,1.01369783,171.17,171.09,16.2899]
[1721924832065,29.57,171.19,171.1,1.16872369]
[1721924832273,10.53895465,171.18,171.09,16.2899]
[1721924833083,386.57452355,171.2,171.09,16.2899]
[1721924833281,10.53802081,171.19,171.1,20.0]
[1721924835381,10.53828971,171.18,171.1,20.0]
[1721924835578,10.53828971,171.19,171.1,20.0]
[1721924836281,10.53815675,171.18,171.1,20.0]
[1721924836580,10.53815675,171.17,171.1,20.0]
[1721924836781,386.57609712,171.2,171.09,16.2899]
[1721924836782,10.53815675,171.19,171.09,16.2899]
[1721924838068,28.10815675,171.19,171.09,16.2899]
[1721924838391,47.14,171.15,170.99,21.5963]
[1721924838588,391.03815675,171.14,170.99,22.76555043]
[1721924838884,10.53815675,171.13,170.99,22.76555043]
[1721924839093,380.5,171.14,170.99,22.76555043]
[1721924839383,10.54142852,171.13,170.99,22.76555043]
[1721924839782,10.54142852,171.13,171.0,45.0]
[1721924839981,10.54142852,171.13,171.01,21.1690843]
[1721924840183,10.54142852,171.13,171.02,46.16908439]
[1721924840370,10.54142852,171.13,171.05,15.2729]
[1721924840558,380.5,171.14,171.06,66.1688995]
[1721924840763,398.07,171.19,171.06,65.0]
[1721924840974,17.57,171.17,171.06,65.0]
[1721924841287,48.10994106,171.16,171.06,20.0]
[1721924841582,28.11163897,171.15,171.06,20.0]
[1721924841791,28.11163897,171.14,171.05,15.2729]
[1721924841964,28.11163897,171.13,171.05,15.2729]
[1721924842165,10.54163897,171.12,171.05,15.2729]
[1721924843165,10.54163897,171.11,171.05,15.2729]
[1721924843366,10.54163897,171.13,171.05,15.2729]
[1721924843583,10.54269785,171.12,171.05,15.2729]
[1721924843886,10.54269785,171.11,171.05,15.2729]
[1721924844083,17.57,171.14,171.05,15.2729]
[1721924844294,453.61288317,171.13,171.04,6.5564]
[1721924844484,17.57,171.11,171.01,16.1143]
[1721924844793,17.57,171.09,171.01,16.1143]
[1721924844993,10.54288317,171.08,170.96,21.5279]
[1721924845177,10.54288317,171.08,170.97,1.1695515]
[1721924845376,10.54288317,171.08,170.96,21.5279]
[1721924845971,10.54288317,171.08,170.97,45.0]
[1721924846290,10.54288317,171.08,170.98,20.0]
[1721924847393,404.14700092,171.09,170.98,20.0]
[1721924847765,404.14700092,171.09,170.97,20.0]
[1721924848674,23.64700092,171.09,170.97,20.0]
[1721924849496,6.07700092,171.09,170.98,1.16955542]
[1721924849668,15.3457,171.13,170.99,1.16919986]
[1721924849873,15.3457,171.13,170.99,21.16919986]
[1721924850086,15.3457,171.13,170.99,20.0]
[1721924850087,20.0,171.12,170.99,20.0]
[1721924850289,29.57,171.11,170.99,20.0]
[1721924850475,17.57,171.09,170.99,20.0]
[1721924850671,47.14,171.04,170.92,22.7149]
[1721924851373,20.0,171.03,170.92,22.7149]
[1721924851973,37.57,171.03,170.92,22.7149]
[1721924852398,37.57,171.03,170.93,20.0]
[1721924853104,82.57,171.02,170.92,22.7149]
[1721924853287,29.57,171.04,170.92,22.7149]
[1721924854489,16.4498,171.05,170.93,1.16992267]
[1721924854680,16.4498,171.05,170.93,45.0]
[1721924854878,16.4498,171.05,170.93,65.0]
[1721924856683,1.01865857,171.06,170.94,1.1696814]
[1721924857099,1.01865857,171.06,170.94,30.7396814]
[1721924857403,380.5,171.07,170.95,65.0]
[1721924857603,380.5,171.07,170.95,66.16959564]
[1721924857990,379.42147115,171.07,170.96,1.16954799]
[1721924858193,29.57,171.11,170.98,15.3387]
[1721924858394,15.034,171.13,170.99,66.16926738]
[1721924858395,16.05222161,171.13,170.99,66.16926738]
[1721924858584,16.05222161,171.13,170.99,65.0]
[1721924858790,59.46592161,171.13,170.99,65.0]
[1721924858980,72.9842,171.11,170.99,65.0]
[1721924859292,20.0,171.09,170.99,20.0]
[1721924859603,16.05222161,171.13,170.99,20.0]
[1721924859777,17.57,171.11,170.99,20.0]
[1721924860210,29.57,171.1,170.99,20.0]
[1721924860503,73.21465413,171.1,170.99,20.0]
[1721924861874,6.07465413,171.1,171.0,45.0]
[1721924862075,17.57,171.12,171.0,45.0]
[1721924862497,17.57,171.1,170.99,20.0]
[1721924863488,17.57,171.1,170.99,21.16946817]
[1721924863693,408.99147115,171.11,170.99,20.0]
[1721924863890,408.99147115,171.11,171.0,45.0]
[1721924864210,379.42147115,171.11,171.0,45.0]
[1721924864393,379.42147115,171.11,171.02,6.4227]
[1721924865624,435.07080177,171.11,170.99,20.0]
[1721924865910,37.57,171.09,170.98,21.7614]
[1721924866089,17.57,171.09,170.98,21.7614]
[1721924866404,440.91500177,171.11,170.98,21.7614]
[1721924866578,460.91500177,171.11,170.98,21.7614]
[1721924866782,17.57,171.09,170.98,21.7614]
[1721924866982,435.07080177,171.11,170.98,21.7614]
[1721924867383,415.07080177,171.11,170.98,21.7614]
[1721924867619,385.50080177,171.11,170.99,20.0]
[1721924867790,379.42147115,171.11,170.99,21.16919366]
[1721924868305,379.42147115,171.11,171.01,6.2662]
[1721924868612,379.42147115,171.11,171.02,66.16907943]
[1721924868790,379.42147115,171.11,171.03,16.1044]
[1721924868991,1.01792634,171.16,171.04,66.16898018]
[1721924869193,1.01792634,171.16,171.05,1.16899062]
[1721924869396,1.01792634,171.16,171.06,6.1749]
[1721924869596,2.39045045,171.19,171.08,16.1044]
[1721924869805,2.39045045,171.19,171.09,66.16866285]
[1721924870023,1.01765707,171.22,171.09,66.16866285]
[1721924870193,1.01765707,171.22,171.1,6.1749]
[1721924870397,35.432,171.24,171.11,66.16844529]
[1721924870795,35.432,171.24,171.11,65.0]
[1721924871612,35.432,171.24,171.11,66.16842933]
[1721924871811,29.57,171.24,171.11,66.16842933]
[1721924871988,29.57,171.24,171.11,65.0]
[1721924872814,29.57,171.24,171.11,66.1684221]
[1721924873120,385.50134226,171.25,171.12,15.8136]
[1721924873413,379.42147115,171.25,171.13,65.0]
[1721924874002,379.42147115,171.25,171.14,7.81766764]
[1721924874197,29.57,171.3,171.15,46.16816961]
[1721924874401,29.57,171.3,171.16,15.8136]
[1721924874590,30.58713446,171.3,171.17,66.16802632]
[1721924875032,37.57,171.27,171.16,15.8136]
[1721924875324,17.57,171.25,171.16,15.8136]
[1721924875689,23.4097,171.25,171.16,15.8136]
[1721924876825,17.57,171.26,171.16,15.8136]
[1721924876994,62.57,171.25,171.16,15.8136]
[1721924877613,68.4094,171.25,171.16,15.8136]
[1721924877800,62.57,171.25,171.16,15.8136]
[1721924878297,396.99147115,171.24,171.16,15.8136]
[1721924878712,17.57,171.22,171.14,6.6493]
[1721924879030,379.42147115,171.23,171.14,6.6493]
[1721924880221,379.42147115,171.23,171.15,1.16846796]
[1721924880725,379.42147115,171.23,171.14,6.6493]
[1721924880894,379.42147115,171.23,171.15,20.0]
[1721924881893,396.99147115,171.23,171.14,6.6493]
[1721924883530,82.57,171.22,171.14,6.6493]
[1721924883827,112.14,171.22,171.14,6.6493]
[1721924884198,37.57,171.2,171.12,15.2123]
[1721924884504,416.99147115,171.2,171.12,15.2123]
[1721924884702,396.99147115,171.2,171.12,15.2123]
[1721924886141,17.57,171.18,171.1,6.4198]
[1721924886628,47.14,171.19,171.1,6.4198]
[1721924886833,45.0,171.18,171.1,6.4198]
[1721924886998,62.57,171.18,171.1,6.4198]
[1721924887521,17.57,171.18,171.1,6.4198]
[1721924888302,29.57,171.19,171.1,6.4198]
[1721924888502,17.57,171.18,171.1,6.4198]
[1721924890013,23.4121,171.17,171.1,6.4198]
[1721924890219,17.57,171.17,171.1,6.4198]
[1721924890810,62.57,171.16,171.1,6.4198]
[1721924891900,17.57,171.16,171.1,6.4198]
[1721924892099,396.99147115,171.17,171.1,6.4198]
[1721924893033,402.83357115,171.17,171.1,6.4198]
[1721924893339,17.57,171.15,171.1,6.4198]
[1721924893703,63.4128,171.15,171.1,6.4198]
[1721924893927,63.4128,171.15,171.06,6.2015]
[1721924894137,17.57,171.12,171.06,6.2015]
[1721924894308,17.57,171.12,171.04,16.486]
[1721924894309,37.57,171.1,171.04,16.486]
[1721924894515,17.57,171.06,170.98,6.5702]
[1721924894830,1.01436794,171.09,171.0,6.5702]
[1721924895349,20.0,171.13,171.0,6.5702]
[1721924895512,20.0,171.09,171.0,6.5702]
[1721924895833,20.0,171.07,171.0,6.5702]
[1721924896134,17.57,171.06,171.0,6.5702]
[1721924896340,17.57,171.04,170.96,6.4761]
[1721924896741,17.57,171.02,170.96,6.4761]
[1721924897241,17.57,170.97,170.92,6.4097]
[1721924897917,379.42147115,171.0,170.92,6.4097]
[1721924898137,20.0,170.98,170.92,6.4097]
[1721924898439,45.0,170.97,170.92,6.4097]
[1721924899007,17.57,170.99,170.92,6.4097]
[1721924899234,399.42147115,171.0,170.92,6.4097]
[1721924899433,379.42147115,171.0,170.93,5.8503]
[1721924899737,379.42147115,171.0,170.92,6.4097]
[1721924899949,17.57,170.99,170.92,6.4097]
[1721924900142,379.42147115,171.0,170.92,6.4097]
[1721924900348,379.42147115,171.0,170.92,12.2603]
[1721924900651,379.42147115,171.0,170.92,6.4097]
[1721924901718,416.99147115,171.0,170.92,6.4097]
[1721924901942,17.57,170.98,170.92,6.4097]
[1721924902137,62.57,170.99,170.92,6.4097]
[1721924902314,379.42147115,171.0,170.92,6.4097]
[1721924902736,379.42147115,171.0,170.92,21.0362]
[1721924902918,379.42147115,171.0,170.93,5.85]
[1721924903114,379.42147115,171.0,170.94,5.8499]
[1721924903318,379.42147115,171.0,170.92,21.0362]
[1721924903717,379.42147115,171.0,170.92,6.4097]
[1721924903919,416.99147115,171.0,170.92,6.4097]
[1721924904215,379.42147115,171.0,170.92,6.4097]
[1721924904436,379.42147115,171.0,170.92,12.2602]
[1721924905250,379.42147115,171.0,170.92,6.4097]
[1721924905423,379.42147115,171.0,170.94,5.8499]
[1721924906444,379.42147115,171.0,170.95,5.8496]
[1721924906934,15.1974,171.06,170.96,14.6231]
[1721924907148,20.0,171.08,170.96,14.6231]
[1721924907315,43.66165,171.08,170.97,5.8489]
[1721924907517,6.09165,171.08,170.98,5.8483]
[1721924907713,6.09165,171.08,170.97,5.8489]
[1721924908344,23.66165,171.08,170.97,5.8489]
[1721924908637,20.0,171.07,170.96,14.6231]
[1721924908817,17.57,171.06,170.96,20.4723]
[1721924909249,17.57,171.06,170.99,14.6207]
[1721924909722,17.57,171.07,170.98,5.8486]
[1721924909916,6.09165,171.08,170.98,5.8486]
[1721924910114,6.09165,171.08,171.0,6.3173]
[1721924910626,379.42147115,171.09,171.03,14.6171]
[1721924910823,379.42147115,171.12,171.03,20.4639]
[1721924911039,23.4138,171.12,171.02,15.4233]
[1721924911746,17.57,171.12,171.02,15.4233]
[1721924911927,23.4138,171.12,171.02,15.4233]
[1721924912542,23.4147,171.1,171.02,15.4233]
[1721924912842,62.57,171.09,171.02,15.4233]
[1721924913733,17.57,171.07,171.0,6.3173]
[1721924914525,37.57,171.07,171.0,6.3173]
[1721924914736,57.57,171.07,171.0,6.3173]
[1721924914938,17.57,171.08,171.0,6.3173]
[1721924915248,62.57,171.07,171.0,6.3173]
[1721924915456,62.57,171.09,171.0,6.3173]
[1721924915752,1.01837293,171.08,171.0,20.9369]
[1721924916124,1.01837293,171.08,171.0,26.7848]
[1721924916550,1.01837293,171.08,171.0,6.3173]
[1721924916858,18.58837293,171.08,171.0,6.3173]
[1721924917023,398.00984408,171.08,171.0,6.3173]
[1721924917347,380.43984408,171.08,171.0,6.3173]
[1721924917646,380.43984408,171.08,171.0,12.1651]
[1721924918440,380.43984408,171.08,171.0,6.3173]
[1721924919631,380.43984408,171.08,171.0,12.1651]
[1721924919832,380.43984408,171.08,171.0,6.3173]
[1721924920126,379.42147115,171.08,171.04,5.8462]
[1721924920342,379.42147115,171.08,171.04,20.4621]
[1721924920540,379.42147115,171.08,171.05,5.846]
[1721924920726,379.42147115,171.08,171.04,14.6159]
[1721924920727,379.42147115,171.08,171.04,20.4624]
[1721924921135,379.42147115,171.08,171.05,5.8461]
[1721924921456,379.42147115,171.08,171.04,14.6159]
[1721924921663,379.42147115,171.08,171.04,20.4624]
[1721924922421,379.42147115,171.08,171.05,6.5608]
[1721924922645,379.42147115,171.08,171.05,12.4069]
[1721924922851,379.42147115,171.08,171.06,5.8457]
[1721924923042,1.0180903,171.13,171.06,5.8457]
[1721924923443,1.0180903,171.13,171.05,12.4069]
[1721924923632,1.0180903,171.13,171.05,6.5608]
[1721924924627,63.5880903,171.13,171.05,6.5608]
[1721924925131,46.0180903,171.13,171.05,6.5608]
[1721924925328,1.0180903,171.13,171.06,5.8458]
[1721924925734,1.0180903,171.13,171.05,6.5608]
[1721924927547,1.0180903,171.13,171.05,12.407]
[1721924927831,1.0180903,171.13,171.05,6.5608]
[1721924928940,1.0180903,171.13,171.05,12.4069]
[1721924930259,1.0180903,171.13,171.06,5.8457]
[1721924930430,1.0180903,171.13,171.05,27.0221]
[1721924931459,18.5880903,171.13,171.05,6.5608]
[1721924933068,1.0180903,171.13,171.05,6.5608]
[1721924933475,1.0180903,171.13,171.07,5.8455]
[1721924933647,385.52278351,171.15,171.07,5.8455]
[1721924934254,385.52278351,171.15,171.09,14.6121]
[1721924934255,6.5608,171.14,171.09,14.6121]
[1721924934461,29.58,171.18,171.1,5.8445]
[1721924934769,6.5608,171.17,171.09,20.4568]
[1721924934979,6.5608,171.17,171.1,5.8445]
[1721924935783,6.5608,171.17,171.09,14.6121]
[1721924935959,6.5608,171.17,171.09,20.4569]
[1721924936480,6.5608,171.17,171.07,15.2083]
[1721924936662,23.4125,171.16,171.07,15.2083]
[1721924936860,12.403,171.17,171.07,15.2083]
[1721924937068,45.0,171.16,171.07,15.2083]
[1721924937470,62.57,171.16,171.07,15.2083]
[1721924937874,441.99147115,171.16,171.07,15.2083]
[1721924938573,63.4131,171.14,171.07,15.2083]
[1721924939153,29.58,171.15,171.07,15.2083]
[1721924939350,45.0,171.14,171.07,15.2083]
[1721924939549,62.57,171.14,171.07,15.2083]
[1721924940954,29.58,171.15,171.07,15.2083]
[1721924941155,29.58,171.15,171.07,21.0538]
[1721924941478,29.58,171.15,171.08,5.8451]
[1721924941654,379.42147115,171.16,171.07,21.0537]
[1721924942357,379.42147115,171.16,171.07,15.2083]
[1721924942558,379.42147115,171.16,171.11,5.8438]
[1721924942755,379.42147115,171.16,171.12,6.2505]
[1721924943651,379.42147115,171.16,171.15,15.3681]
[1721924943851,15.2083,171.21,171.15,15.3681]
[1721924944052,15.2083,171.21,171.15,21.2108]
[1721924944365,1.01753026,171.23,171.15,21.2108]
[1721924944566,1.01753026,171.23,171.16,5.8423]
[1721924944782,385.52201843,171.24,171.16,5.8423]
[1721924945082,385.52201843,171.24,171.15,21.2109]
[1721924945251,385.52201843,171.24,171.16,5.8423]
[1721924945448,6.10054728,171.24,171.17,5.842]
[1721924945955,6.10054728,171.24,171.16,12.0929]
[1721924946152,6.10054728,171.24,171.16,6.2505]
[1721924947790,6.10054728,171.24,171.16,12.0929]
[1721924948677,23.67054728,171.24,171.16,6.2505]
[1721924948873,92.15,171.23,171.16,6.2505]
[1721924950482,132.15,171.23,171.04,29.58]
[1721924950793,29.58,171.2,171.06,6.5416]
[1721924951156,29.58,171.2,171.07,15.6807]
[1721924951383,29.58,171.2,171.08,6.5416]
[1721924951593,67.15,171.2,171.08,6.5416]
[1721924951767,67.15,171.2,171.1,5.8444]
[1721924952479,17.57,171.18,171.08,6.5416]
[1721924952676,17.57,171.18,171.08,12.3865]
[1721924952985,17.57,171.18,171.09,5.8448]
[1721924953483,17.57,171.18,171.08,12.3867]
[1721924953787,37.57,171.18,171.09,5.8448]
[1721924954284,37.57,171.15,171.08,6.5416]
[1721924954458,416.99147115,171.15,171.08,6.5416]
[1721924954773,37.57,171.13,171.08,6.5416]
[1721924954957,17.57,171.13,170.99,22.98]
[1721924955360,37.57,171.13,171.04,5.8465]
[1721924955563,57.57,171.13,171.03,5.8468]
[1721924955784,62.57,171.12,171.02,5.8472]
[1721924955982,37.57,171.11,171.01,5.8475]
[1721924956300,87.15,171.11,171.01,5.8475]
[1721924956471,87.15,171.11,171.0,5.8479]
[1721924956669,17.57,171.09,171.01,5.8475]
[1721924956883,29.58,171.11,170.99,22.98]
[1721924957874,29.58,171.11,171.02,5.847]
[1721924958082,29.58,171.11,170.99,22.98]
[1721924958387,29.58,171.11,171.03,5.8466]
[1721924958572,29.58,171.11,170.99,22.98]
[1721924958573,37.57,171.1,171.01,5.8475]
[1721924958780,82.57,171.09,170.99,28.8279]
[1721924959381,62.57,171.09,170.99,28.8279]
[1721924959671,62.57,171.09,171.0,5.8478]
[1721924960479,429.00147115,171.11,170.99,22.98]
[1721924960480,426.57147115,171.11,170.99,22.98]
[1721924960773,62.57,171.1,170.99,22.98]
[1721924962369,62.57,171.1,171.02,5.8472]
[1721924962570,20.0,171.08,170.99,22.98]
[1721924963091,62.57,171.1,170.99,22.98]
[1721924963272,45.0,171.1,170.99,22.98]
[1721924963590,45.0,171.1,171.02,5.8469]
[1721924963778,426.57147115,171.11,170.99,22.98]
[1721924963779,446.57147115,171.11,171.01,5.8475]
[1721924964191,426.57147115,171.11,171.02,5.8471]
[1721924964491,409.00147115,171.11,171.03,5.8465]
[1721924964681,17.57,171.13,170.99,22.98]
[1721924964682,17.57,171.13,171.04,5.8465]
[1721924964874,17.57,171.13,171.02,5.8469]
[1721924965084,23.67522693,171.13,171.03,5.8468]
[1721924965282,6.10522693,171.13,170.99,24.14926974]
[1721924965474,379.42147115,171.14,171.05,5.8461]
[1721924965793,6.10503591,171.12,171.03,5.8468]
[1721924965973,6.10503591,171.12,171.0,45.0]
[1721924966176,379.42147115,171.14,171.0,45.0]
[1721924966177,379.42147115,171.14,171.13,5.8435]
[1721924966398,17.57,171.18,171.08,5.8451]
[1721924966570,17.57,171.16,171.03,21.2815]
[1721924966766,385.26337115,171.18,171.07,5.8455]
[1721924966975,6.10559595,171.17,171.08,5.8449]
[1721924967275,6.10559595,171.17,171.09,5.8447]
[1721924967470,6.10559595,171.17,171.05,1.16891015]
[1721924967669,15.5488,171.19,171.09,5.8445]
[1721924967969,21.65393858,171.19,171.09,5.8445]
[1721924968668,21.65393858,171.19,171.05,1.16881641]
[1721924968871,6.10513858,171.19,171.11,5.8439]
[1721924969174,1.01780909,171.21,171.11,6.5657]
[1721924969579,385.52483042,171.22,171.12,36.113]
[1721924969788,379.42147115,171.22,171.12,36.113]
[1721924970101,379.42147115,171.22,171.16,5.8424]
[1721924970309,379.42147115,171.22,171.13,1.16850604]
[1721924970310,379.42147115,171.22,171.15,5.8427]
[1721924970508,379.42147115,171.22,171.14,5.843]
[1721924970805,379.42147115,171.22,171.12,36.113]
[1721924971099,379.42147115,171.22,171.12,41.9565]
[1721924971331,62.57,171.21,171.12,36.113]
[1721924971504,45.0,171.21,171.12,36.113]
[1721924971903,45.0,171.21,171.12,41.9567]
[1721924972411,385.52536931,171.22,171.13,5.8434]
[1721924972583,385.52536931,171.22,171.12,36.113]
[1721924972910,385.52536931,171.22,171.12,41.9568]
[1721924973589,6.10389816,171.22,171.12,36.113]
[1721924973789,6.10389816,171.22,171.14,5.8431]
[1721924973988,6.10389816,171.22,171.12,36.113]
[1721924974685,6.10389816,171.22,171.13,5.8434]
[1721924974911,6.10389816,171.22,171.12,36.113]
[1721924975092,6.10389816,171.22,171.16,5.8421]
[1721924975283,380.43899336,171.24,171.12,36.113]
[1721924975605,35.4919,171.27,171.16,5.8423]
[1721924975606,47.38707669,171.27,171.16,5.8423]
[1721924975801,10.53649516,171.26,171.16,5.8423]
[1721924975983,34.21705585,171.26,171.16,5.8423]
[1721924976179,10.53649516,171.25,171.16,5.8423]
[1721924976379,6.11056069,171.26,171.16,5.8423]
[1721924976609,10.5365432,171.25,171.16,5.8423]
[1721924976811,6.11056069,171.26,171.16,5.8423]
[1721924977014,10.53655428,171.25,171.16,5.8423]
[1721924977387,23.68056069,171.26,171.16,5.8423]
[1721924977610,10.53666743,171.25,171.16,5.8423]
[1721924977994,23.68056069,171.26,171.17,5.842]
[1721924978195,10.5366307,171.25,171.17,5.842]
[1721924978395,23.68056069,171.26,171.17,5.842]
[1721924978606,1.01740434,171.24,171.12,36.113]
[1721924978806,1.01740434,171.24,171.14,5.8429]
[1721924979114,1.01740434,171.24,171.15,5.8428]
[1721924979493,21.01740434,171.24,171.15,5.8428]
[1721924979706,1.01740434,171.24,171.15,5.8428]
[1721924980710,1.01740434,171.24,171.12,16.113]
[1721924980711,37.57,171.22,171.12,16.113]
[1721924981019,36.43720434,171.24,171.13,5.8432]
[1721924981206,45.0,171.23,171.14,5.8431]
[1721924981998,57.57,171.22,171.11,6.5657]
[1721924982421,37.57,171.22,171.11,6.5657]
[1721924982594,37.57,171.22,171.12,5.8438]
[1721924983103,37.57,171.22,171.11,6.5657]
[1721924983104,45.0,171.23,171.13,5.8434]
[1721924983509,62.57,171.23,171.13,5.8434]
[1721924983813,62.57,171.23,171.14,5.8431]
[1721924984405,30.59740434,171.24,171.15,5.8427]
[1721924985110,30.59740434,171.24,171.16,5.8423]
[1721924985810,30.59740434,171.24,171.11,6.5657]
[1721924986005,29.58,171.24,171.12,66.16835052]
[1721924986395,6.11056069,171.26,171.12,66.16835052]
[1721924986595,6.11056069,171.26,171.13,1.16834906]
[1721924987519,6.11056069,171.26,171.16,5.8424]
[1721924988299,11.94956069,171.26,171.15,5.8427]
[1721924988617,5.8399,171.24,171.13,5.8432]
[1721924988841,23.4095,171.25,171.14,25.8431]
[1721924989010,43.4095,171.25,171.14,25.8431]
[1721924989217,1.01759579,171.24,171.14,25.8431]
[1721924989528,68.16759579,171.24,171.14,20.0]
[1721924989822,88.4103,171.23,171.12,25.8435]
[1721924990016,51.11120668,171.23,171.13,5.8434]
[1721924990403,51.11120668,171.23,171.14,5.843]
[1721924990609,6.11120668,171.23,171.14,5.843]
[1721924990822,6.11120668,171.23,171.12,20.0]
[1721924991210,6.11120668,171.23,171.14,5.8431]
[1721924991414,6.11120668,171.23,171.13,5.8434]
[1721924991924,6.11120668,171.23,171.14,5.843]
[1721924993828,30.59759579,171.24,171.12,20.0]
[1721924994015,68.16759579,171.24,171.14,5.843]
[1721924994204,74.00729579,171.24,171.13,5.8434]
[1721924994406,37.57,171.23,171.12,20.0]
[1721924994723,17.57,171.23,171.13,5.8432]
[1721924994924,23.41,171.23,171.13,5.8432]
[1721924995229,43.41,171.23,171.12,25.8437]
[1721924995923,17.57,171.23,171.13,5.8434]
[1721924996425,17.57,171.23,171.12,20.0]
[1721924997017,17.57,171.23,171.15,5.8426]
[1721924997213,17.57,171.23,171.14,5.843]
[1721924997925,17.57,171.23,171.13,5.8434]
[1721924998304,17.57,171.23,171.14,5.843]
[1721924998506,37.57,171.23,171.13,5.8434]
[1721924999125,17.57,171.23,171.12,20.0]
[1721925000215,17.57,171.23,171.13,1.16848697]
[1721925000423,1.01759579,171.24,171.12,21.16848697]
[1721925000611,1.01759579,171.24,171.14,5.843]
[1721925001132,1.01759579,171.24,171.17,5.842]
[1721925001305,6.11322358,171.25,171.16,5.8424]
[1721925001620,7.13063139,171.25,171.12,20.0]
[1721925001925,6.11322358,171.25,171.17,5.842]
[1721925002824,6.11322358,171.25,171.13,45.0]
[1721925002825,6.11322358,171.25,171.19,5.8413]
[1721925003127,15.4919,171.27,171.19,5.8413]
[1721925003304,15.4919,171.27,171.2,5.8411]
[1721925003919,33.0619,171.27,171.15,15.239]
[1721925004226,33.0619,171.27,171.17,5.8418]
[1721925004526,15.4919,171.27,171.18,5.8415]
[1721925004914,15.4919,171.27,171.19,5.8412]